bitfinex/quotes_BTCUSD_20260103
["timestamp","ask_amount","ask_price","bid_price","bid_amount"]
[1767417453596,0.05973741,90049.0,90046.0,0.01112]
[1767417454352,0.04863235,90049.0,90046.0,0.01112]
[1767417456116,0.01110481,90051.0,90046.0,0.02222543]
[1767417456811,0.01110494,90050.0,90046.0,0.01112]
[1767417458143,0.01110506,90049.0,90046.0,0.01112]
[1767417460985,0.01110494,90050.0,90046.0,0.01112]
[1767417461801,0.01110481,90051.0,90046.0,0.01112]
[1767417462138,0.01110432,90055.0,90048.0,0.01110518]
[1767417462250,0.01110395,90058.0,90051.0,0.05552409]
[1767417462455,0.01110407,90057.0,90052.0,0.01110469]
[1767417463686,0.01110395,90058.0,90053.0,0.01110457]
[1767417463939,0.01110407,90057.0,90052.0,0.01110469]
[1767417465089,0.01110395,90058.0,90053.0,0.01110457]
[1767417465291,0.07085568,90063.0,90057.0,0.01110407]
[1767417465695,0.01110358,90061.0,90055.0,0.01110432]
[1767417465898,0.0111037,90060.0,90055.0,0.01110432]
[1767417466373,0.01110383,90059.0,90054.0,0.06662668]
[1767417466525,0.01110383,90059.0,90055.0,0.01110432]
[1767417466725,0.05551775,90062.0,90056.0,0.0111042]
[1767417466726,0.01110346,90062.0,90056.0,0.0111042]
[1767417466927,0.05551496,90066.0,90058.0,0.05541932]
[1767417466928,0.01110296,90066.0,90058.0,0.05541932]
[1767417467127,0.01112,90062.0,90059.0,0.01110383]
[1767417467718,0.01112,90062.0,90058.0,0.01110395]
[1767417468043,0.01110469,90052.0,90043.0,0.05552843]
[1767417468242,0.01110481,90051.0,90046.0,0.01110543]
[1767417468639,0.01110469,90052.0,90046.0,0.01110543]
[1767417468640,0.01110469,90052.0,90047.0,0.01110531]
[1767417469183,0.06662794,90053.0,90048.0,0.01110518]
[1767417469184,0.01110457,90053.0,90048.0,0.01110518]
[1767417469388,0.01110469,90052.0,90046.0,0.01110543]
[1767417469590,0.01110469,90052.0,90047.0,0.01110531]
[1767417470098,0.01110457,90053.0,90048.0,0.01110518]
[1767417470299,0.01110494,90050.0,90044.0,0.01110568]
[1767417470538,0.000999,90048.0,90045.0,0.066633]
[1767417470748,0.01110469,90052.0,90047.0,0.01110531]
[1767417470989,0.01110481,90051.0,90046.0,0.01110543]
[1767417471194,0.01110481,90051.0,90047.0,0.01110531]
[1767417471407,0.000999,90047.0,90043.0,0.00035974]
[1767417471636,0.000999,90047.0,90043.0,0.04828748]
[1767417471852,0.01110543,90046.0,90043.0,0.00035974]
[1767417472553,0.05552834,90045.0,90043.0,7.4e-07]
[1767417472759,0.06663314,90046.0,90043.0,7.4e-07]
[1767417473078,0.01110543,90046.0,90043.0,7.4e-07]
[1767417474686,0.01110444,90054.0,90043.0,7.4e-07]
[1767417474885,0.01110518,90048.0,90043.0,0.01110654]
[1767417475144,0.01110506,90049.0,90044.0,0.01110568]
[1767417476512,0.01110494,90050.0,90044.0,0.01110568]
[1767417477065,0.01110494,90050.0,90045.0,0.01110555]
[1767417477476,0.01110506,90049.0,90044.0,0.01110568]
[1767417477862,0.01110494,90050.0,90045.0,0.01110555]
[1767417478257,0.01110494,90050.0,90044.0,0.01110568]
[1767417478459,0.01110358,90061.0,90050.0,0.01136396]
[1767417478669,0.01110407,90057.0,90052.0,0.05903243]
[1767417479042,0.01110432,90055.0,90052.0,0.04792774]
[1767417479282,0.01110432,90055.0,90051.0,0.01110481]
[1767417479440,0.0111042,90056.0,90051.0,0.01110481]
[1767417479642,0.01110407,90057.0,90050.0,0.01110494]
[1767417479643,0.01110432,90055.0,90050.0,0.01110494]
[1767417479984,0.01110444,90054.0,90049.0,0.05796754]
[1767417480180,0.01110444,90054.0,90049.0,0.04686248]
[1767417480387,0.01110444,90054.0,90049.0,0.01110506]
[1767417481445,0.01110395,90058.0,90054.0,0.000359]
[1767417481647,0.01110395,90058.0,90052.0,0.01110469]
[1767417481648,0.0111042,90056.0,90049.0,0.01110506]
[1767417481867,0.01110407,90057.0,90052.0,0.01110469]
[1767417482070,0.0111042,90056.0,90050.0,0.01110494]
[1767417482243,0.01110444,90054.0,90049.0,0.01110506]
[1767417482445,0.01110432,90055.0,90050.0,0.01110494]
[1767417483254,0.01110407,90057.0,90052.0,0.01110469]
[1767417483435,0.01110346,90062.0,90052.0,0.01110469]
[1767417483646,0.01110395,90058.0,90051.0,0.05796729]
[1767417484006,0.01110432,90055.0,90051.0,0.04686248]
[1767417484200,0.0111042,90056.0,90051.0,0.05796729]
[1767417484383,0.0222242,90056.0,90051.0,0.01110481]
[1767417484581,0.01112,90056.0,90052.0,0.01110469]
[1767417487077,0.01112,90056.0,90053.0,0.01110457]
[1767417487683,0.01110395,90058.0,90056.0,0.000359]
[1767417487881,0.01112,90057.0,90056.0,0.000359]
[1767417488084,0.01110395,90058.0,90053.0,0.01110457]
[1767417488318,0.01112,90057.0,90053.0,0.01110457]
[1767417488535,0.01110383,90059.0,90052.0,0.01110469]
[1767417488696,0.01112,90058.0,90052.0,0.01110469]
[1767417488902,0.01112,90058.0,90053.0,0.01110457]
[1767417489557,0.01112,90057.0,90053.0,0.01110457]
[1767417489926,0.02222407,90057.0,90052.0,0.01110469]
[1767417490334,0.01112,90056.0,90052.0,0.01110469]
[1767417490857,0.06677276,90061.0,90056.0,0.000359]
[1767417490858,0.0001508,90061.0,90056.0,0.000359]
[1767417491108,0.0001508,90061.0,90059.0,0.0555189]
[1767417491282,0.2469,90069.0,90063.0,0.04686248]
[1767417491283,0.25800259,90069.0,90063.0,0.04686248]
[1767417491487,0.06661634,90068.0,90061.0,0.01110358]
[1767417491685,0.01110284,90067.0,90061.0,0.01110358]
[1767417492007,0.01110296,90066.0,90060.0,0.0111037]
[1767417492227,0.01110296,90066.0,90061.0,0.01110358]
[1767417492402,0.01110309,90065.0,90059.0,0.06662266]
[1767417492562,0.01110296,90066.0,90060.0,0.0111037]
[1767417493368,0.06661716,90067.0,90060.0,0.0111037]
[1767417493369,0.01110284,90067.0,90061.0,0.01110358]
[1767417494350,0.01110284,90067.0,90062.0,0.01110346]
[1767417494481,0.2469,90069.0,90067.0,0.000999]
[1767417494914,0.2469,90069.0,90066.0,0.06661768]
[1767417495743,0.2469,90069.0,90066.0,0.01110296]
[1767417496043,0.2469,90069.0,90064.0,0.01110321]
[1767417496248,0.2469,90069.0,90065.0,0.01110309]
[1767417496411,0.01112,90070.0,90066.0,0.01110296]
[1767417496610,0.01112,90070.0,90067.0,0.01110284]
[1767417496815,0.05565799,90079.0,90070.0,0.000999]
[1767417497019,0.01110185,90075.0,90070.0,0.000999]
[1767417497339,0.01110198,90074.0,90069.0,0.01110259]
[1767417497484,0.06661098,90076.0,90069.0,0.01110259]
[1767417497485,0.01112,90073.0,90070.0,0.01110247]
[1767417497683,0.01112,90073.0,90069.0,0.01110259]
[1767417500003,0.01112,90073.0,90070.0,0.01110247]
[1767417500404,0.01112,90073.0,90069.0,0.01110259]
[1767417500600,0.01112,90073.0,90068.0,0.01110272]
[1767417501162,0.0222221,90073.0,90066.0,0.01110296]
[1767417501442,0.01110222,90072.0,90066.0,0.01110296]
[1767417501617,0.0222221,90073.0,90066.0,0.01110296]
[1767417501618,0.0222221,90073.0,90067.0,0.01110284]
[1767417502126,0.01110222,90072.0,90067.0,0.01110284]
[1767417502505,0.01110222,90072.0,90066.0,0.01110296]
[1767417502669,0.0222221,90073.0,90067.0,0.01110284]
[1767417503229,0.01110222,90072.0,90066.0,0.01110296]
[1767417503861,0.01110222,90072.0,90067.0,0.01110284]
[1767417504068,0.01110222,90072.0,90066.0,0.01110296]
[1767417504614,0.01110222,90072.0,90067.0,0.01110284]
[1767417505874,0.01110222,90072.0,90065.0,0.01110309]
[1767417506479,0.01110222,90072.0,90067.0,0.01110284]
[1767417506677,0.0222221,90073.0,90067.0,0.01110284]
[1767417508649,0.0222221,90073.0,90068.0,0.01110272]
[1767417508979,0.01112,90073.0,90069.0,0.01110259]
[1767417509317,0.01112,90073.0,90067.0,0.01110284]
[1767417509500,0.0222221,90073.0,90068.0,0.01110272]
[1767417509665,0.01112,90073.0,90068.0,0.01110272]
[1767417510560,0.0222221,90073.0,90066.0,0.01110296]
[1767417510875,0.01112,90073.0,90066.0,0.01110296]
[1767417511087,0.0222221,90073.0,90068.0,0.01110272]
[1767417511233,0.0222221,90073.0,90067.0,0.01110284]
[1767417511638,0.0222221,90073.0,90068.0,0.01110272]
[1767417512060,0.0222221,90073.0,90067.0,0.01110284]
[1767417512460,0.0222221,90073.0,90066.0,0.01110296]
[1767417512461,0.01110222,90072.0,90066.0,0.01110296]
[1767417512805,0.0222221,90073.0,90067.0,0.01110284]
[1767417512960,0.01110222,90072.0,90066.0,0.01110296]
[1767417513137,0.0222221,90073.0,90066.0,0.01110296]
[1767417513895,0.0222221,90073.0,90068.0,0.01110272]
[1767417514051,0.0222221,90073.0,90067.0,0.01110284]
[1767417514670,0.01112,90073.0,90068.0,0.01110272]
[1767417515455,0.01110222,90072.0,90065.0,0.01110309]
[1767417515690,0.01112,90073.0,90068.0,0.01110272]
[1767417516268,0.01112,90073.0,90067.0,0.01110284]
[1767417516659,0.01112,90073.0,90068.0,0.01110272]
[1767417516856,0.01112,90073.0,90069.0,0.01110259]
[1767417517874,0.01112,90073.0,90070.0,0.01110247]
[1767417518292,0.01112,90073.0,90069.0,0.01110259]
[1767417518477,0.01112,90073.0,90067.0,0.01110284]
[1767417518701,0.01112,90073.0,90069.0,0.01110259]
[1767417518901,0.05746031,90073.0,90068.0,0.01110272]
[1767417519741,0.01110222,90072.0,90067.0,0.01110284]
[1767417520073,0.04534131,90073.0,90067.0,0.01110284]
[1767417520074,0.0111021,90073.0,90067.0,0.01110284]
[1767417520234,0.04634031,90072.0,90068.0,0.01110272]
[1767417520823,0.04634031,90072.0,90067.0,0.01110284]
[1767417521001,0.04634031,90072.0,90069.0,0.01110259]
[1767417522944,0.04634031,90072.0,90068.0,0.01110272]
[1767417523150,0.04634031,90072.0,90069.0,0.01110259]
[1767417523692,0.04634031,90072.0,90068.0,0.01110272]
[1767417524468,0.04634031,90072.0,90069.0,0.01110259]
[1767417524668,0.04634031,90072.0,90067.0,0.01110284]
[1767417525264,0.04634031,90072.0,90068.0,0.01110272]
[1767417526002,0.04634031,90072.0,90067.0,0.01110284]
[1767417526231,0.04634031,90072.0,90069.0,0.01110259]
[1767417526373,0.000999,90069.0,90067.0,0.01110284]
[1767417526578,0.05551913,90060.0,90049.0,0.01110506]
[1767417526800,0.01110395,90058.0,90046.0,0.01110543]
[1767417527004,0.01110444,90054.0,90046.0,0.01110543]
[1767417527203,0.01110444,90054.0,90047.0,0.01110531]
[1767417527549,0.22862022,90060.0,90049.0,0.05552532]
[1767417527663,0.01110395,90058.0,90051.0,0.01110481]
[1767417527861,0.01110383,90059.0,90053.0,0.01110457]
[1767417528484,0.01110395,90058.0,90052.0,0.01110469]
[1767417528715,0.01110383,90059.0,90053.0,0.01110457]
[1767417529280,0.01110383,90059.0,90052.0,0.01110469]
[1767417529920,0.01110383,90059.0,90051.0,0.01110481]
[1767417529921,0.01110407,90057.0,90051.0,0.01110481]
[1767417530425,0.01110383,90059.0,90051.0,0.01110481]
[1767417530757,0.01110383,90059.0,90052.0,0.01110469]
[1767417530960,0.01110383,90059.0,90053.0,0.01110457]
[1767417531185,0.01146378,90060.0,90053.0,0.01110457]
[1767417531309,0.01146378,90060.0,90054.0,0.01110444]
[1767417531660,0.04634031,90059.0,90054.0,0.01110444]
[1767417531839,0.04634031,90059.0,90055.0,0.01110432]
[1767417532187,0.04634031,90059.0,90056.0,0.0111042]
[1767417532668,0.00036008,90060.0,90056.0,0.0111042]
[1767417532876,0.04670039,90060.0,90056.0,0.0111042]
[1767417533077,0.00036008,90060.0,90056.0,0.0111042]
[1767417534541,0.00036008,90060.0,90055.0,0.01110432]
[1767417535030,0.00036008,90060.0,90057.0,0.01110407]
[1767417535565,0.00036008,90060.0,90056.0,0.0111042]
[1767417536615,0.00036008,90060.0,90057.0,0.01110407]
[1767417537436,0.00036008,90060.0,90056.0,0.0111042]
[1767417537645,0.00036008,90060.0,90055.0,0.01110432]
[1767417537794,0.00036008,90060.0,90056.0,0.0111042]
[1767417538183,0.00036008,90060.0,90055.0,0.01110432]
[1767417538386,0.00036008,90060.0,90054.0,0.01110444]
[1767417539290,0.01146378,90060.0,90054.0,0.01110444]
[1767417539555,0.00036008,90060.0,90054.0,0.01110444]
[1767417540260,0.01146378,90060.0,90054.0,0.01110444]
[1767417540612,0.01110383,90059.0,90053.0,0.01110457]
[1767417540891,0.01110383,90059.0,90052.0,0.06662767]
[1767417541687,0.01146378,90060.0,90052.0,0.06662767]
[1767417541894,0.00036008,90060.0,90056.0,0.0111042]
[1767417542297,0.00036008,90060.0,90055.0,0.01110432]
[1767417542506,0.01146378,90060.0,90053.0,0.01110457]
[1767417542886,0.01146378,90060.0,90054.0,0.01110444]
[1767417543092,0.01110383,90059.0,90053.0,0.01110457]
[1767417543488,0.01146378,90060.0,90053.0,0.01110457]
[1767417543489,0.01146378,90060.0,90054.0,0.01110444]
[1767417543841,0.00036008,90060.0,90054.0,0.01110444]
[1767417544690,0.01146378,90060.0,90053.0,0.01110457]
[1767417545462,0.00036008,90060.0,90055.0,0.01110432]
[1767417545612,0.00036008,90060.0,90056.0,0.0111042]
[1767417546035,0.01146378,90060.0,90054.0,0.01110444]
[1767417546771,0.01146378,90060.0,90053.0,0.01110457]
[1767417546936,0.01110383,90059.0,90054.0,0.01110444]
[1767417547102,0.01110383,90059.0,90053.0,0.01110457]
[1767417547449,0.01146378,90060.0,90052.0,0.066628]
[1767417547709,0.01146378,90060.0,90054.0,0.01110444]
[1767417547986,0.01110383,90059.0,90053.0,0.01110457]
[1767417548200,0.01110395,90058.0,90052.0,0.01110469]
[1767417548403,0.01110383,90059.0,90052.0,0.01110469]
[1767417548735,0.01110395,90058.0,90052.0,0.01110469]
[1767417548970,0.01110383,90059.0,90053.0,0.01110457]
[1767417549640,0.01110395,90058.0,90052.0,0.01110469]
[1767417550649,0.01110383,90059.0,90053.0,0.01110457]
[1767417550786,0.01110383,90059.0,90054.0,0.01110444]
[1767417550991,0.01110383,90059.0,90053.0,0.01110457]
[1767417551638,0.01146378,90060.0,90054.0,0.01110444]
[1767417552650,0.00036008,90060.0,90055.0,0.01110432]
[1767417553059,0.00036008,90060.0,90056.0,0.0111042]
[1767417553470,0.00036008,90060.0,90055.0,0.01110432]
[1767417553990,0.01146378,90060.0,90054.0,0.01110444]
[1767417554545,0.01110383,90059.0,90053.0,0.01110457]
[1767417554742,0.01146378,90060.0,90054.0,0.01110444]
[1767417555363,0.00036008,90060.0,90054.0,0.01110444]
[1767417556541,0.01146378,90060.0,90055.0,0.01110432]
[1767417557459,0.01146378,90060.0,90054.0,0.01110444]
[1767417557898,0.00036008,90060.0,90055.0,0.01110432]
[1767417558278,0.00036008,90060.0,90054.0,0.06662624]
[1767417558279,0.00036008,90060.0,90054.0,0.01110444]
[1767417558597,0.01146378,90060.0,90054.0,0.01110444]
[1767417559979,0.01110284,90067.0,90058.0,0.01110395]
[1767417560174,0.01110309,90065.0,90058.0,0.01110395]
[1767417560405,0.01110321,90064.0,90059.0,0.01110383]
[1767417560720,0.01110333,90063.0,90058.0,0.01110395]
[1767417560946,0.01110321,90064.0,90058.0,0.01110395]
[1767417561308,0.01110333,90063.0,90057.0,0.01110407]
[1767417562054,0.01110346,90062.0,90055.0,0.01110432]
[1767417562354,0.01110346,90062.0,90057.0,0.01110407]
[1767417562521,0.01110346,90062.0,90055.0,0.01110432]
[1767417562522,0.01110358,90061.0,90055.0,0.01110432]
[1767417562723,0.01110346,90062.0,90056.0,0.0111042]
[1767417562959,0.01110358,90061.0,90055.0,0.01110432]
[1767417563317,0.01110333,90063.0,90057.0,0.01110407]
[1767417563742,0.07773825,90066.0,90058.0,0.01110395]
[1767417564113,0.01110309,90065.0,90058.0,0.01110395]
[1767417564477,0.01110309,90065.0,90057.0,0.01110407]
[1767417564770,0.01110321,90064.0,90056.0,0.0111042]
[1767417564977,0.01110321,90064.0,90057.0,0.01110407]
[1767417565732,0.06661944,90064.0,90057.0,0.01110407]
[1767417565938,0.01110346,90062.0,90056.0,0.0111042]
[1767417566474,0.01110346,90062.0,90057.0,0.01110407]
[1767417567076,0.01110346,90062.0,90056.0,0.0111042]
[1767417567280,0.01110321,90064.0,90058.0,0.01110395]
[1767417567483,0.01110333,90063.0,90057.0,0.01110407]
[1767417568786,0.01110333,90063.0,90058.0,0.01110395]
[1767417569341,0.01110333,90063.0,90057.0,0.01110407]
[1767417569990,0.01110346,90062.0,90057.0,0.01110407]
[1767417570190,0.01110346,90062.0,90056.0,0.0111042]
[1767417570512,0.01110333,90063.0,90057.0,0.01110407]
[1767417570701,0.01110346,90062.0,90056.0,0.0111042]
[1767417570905,0.01110346,90062.0,90057.0,0.01110407]
[1767417571272,0.01110321,90064.0,90058.0,0.01110395]
[1767417571612,0.01110333,90063.0,90057.0,0.01110407]
[1767417572018,0.01110333,90063.0,90058.0,0.01110395]
[1767417572427,0.01110321,90064.0,90058.0,0.01110395]
[1767417572628,0.01110333,90063.0,90057.0,0.01110407]
[1767417572989,0.01110333,90063.0,90058.0,0.01110395]
[1767417573571,0.01110309,90065.0,90059.0,0.01110383]
[1767417573810,0.02222296,90066.0,90060.0,0.0111037]
[1767417574207,0.01112,90065.0,90060.0,0.0111037]
[1767417574812,0.01112,90065.0,90059.0,0.01110383]
[1767417575287,0.02222309,90065.0,90059.0,0.01110383]
[1767417576994,0.01110321,90064.0,90058.0,0.06662313]
[1767417577195,0.01110321,90064.0,90059.0,0.01110383]
[1767417578480,0.01110321,90064.0,90058.0,0.06662313]
[1767417578685,0.01110321,90064.0,90058.0,0.01110395]
[1767417578887,0.01110321,90064.0,90059.0,0.01110383]
[1767417579189,0.02222309,90065.0,90060.0,0.0111037]
[1767417580064,0.02222309,90065.0,90059.0,0.01110383]
[1767417580065,0.000999,90060.0,90057.0,0.01110407]
[1767417580466,0.01110346,90062.0,90057.0,0.01110407]
[1767417580645,0.01110321,90064.0,90057.0,0.01110407]
[1767417580848,0.01110333,90063.0,90057.0,0.01110407]
[1767417581192,0.01110333,90063.0,90056.0,0.0111042]
[1767417581193,0.01110358,90061.0,90056.0,0.0111042]
[1767417581329,0.01110346,90062.0,90056.0,0.0111042]
[1767417582232,0.01110333,90063.0,90056.0,0.0111042]
[1767417582432,0.02222309,90065.0,90059.0,0.01110383]
[1767417582659,0.02222309,90065.0,90060.0,0.0111037]
[1767417582863,0.01110321,90064.0,90059.0,0.01110383]
[1767417583055,0.01110333,90063.0,90058.0,0.01110395]
[1767417583504,0.01110321,90064.0,90057.0,0.01110407]
[1767417584103,0.06661945,90064.0,90057.0,0.01110407]
[1767417584981,0.01110333,90063.0,90058.0,0.01110395]
[1767417585299,0.01110333,90063.0,90057.0,0.01110407]
[1767417587306,0.01110321,90064.0,90059.0,0.01110383]
[1767417587502,0.02222309,90065.0,90059.0,0.01110383]
[1767417587655,0.01110321,90064.0,90058.0,0.01110395]
[1767417588055,0.01110321,90064.0,90057.0,0.06662387]
[1767417588056,0.000999,90058.0,90054.0,0.01110444]
[1767417588252,0.000999,90058.0,90055.0,0.01110432]
[1767417588848,0.01110346,90062.0,90056.0,0.0111042]
[1767417589291,0.01110358,90061.0,90056.0,0.0111042]
[1767417589500,0.01110358,90061.0,90055.0,0.01110432]
[1767417590256,0.01110358,90061.0,90056.0,0.0111042]
[1767417590870,0.01110333,90063.0,90057.0,0.01110407]
[1767417591070,0.01110321,90064.0,90058.0,0.01110395]
[1767417591308,0.01110333,90063.0,90058.0,0.01110395]
[1767417591706,0.01110333,90063.0,90057.0,0.01110407]
[1767417591707,0.01110346,90062.0,90057.0,0.01110407]
[1767417592488,0.01110346,90062.0,90056.0,0.0111042]
[1767417593099,0.01110346,90062.0,90057.0,0.01110407]
[1767417593502,0.01110346,90062.0,90052.0,0.05552299]
[1767417593503,0.05801881,90056.0,90041.0,0.22212054]
[1767417593723,0.06663023,90050.0,90041.0,0.01110605]
[1767417593925,0.01110506,90049.0,90042.0,0.01110592]
[1767417594182,0.01110494,90050.0,90043.0,0.0111058]
[1767417594516,0.01110494,90050.0,90044.0,0.01110568]
[1767417594720,0.01110457,90053.0,90047.0,0.01110531]
[1767417595052,0.01110444,90054.0,90048.0,0.01110518]
[1767417595251,0.01110457,90053.0,90048.0,0.01110518]
[1767417595461,0.04691461,90054.0,90048.0,0.01010618]
[1767417595604,0.01110457,90053.0,90048.0,0.01110518]
[1767417595811,0.05801905,90054.0,90048.0,0.01110518]
[1767417596665,0.01110457,90053.0,90047.0,0.01110531]
[1767417596892,0.01110457,90053.0,90046.0,0.01110543]
[1767417597243,0.01110457,90053.0,90047.0,0.01110531]
[1767417598069,0.01110457,90053.0,90048.0,0.01110518]
[1767417598263,0.01110469,90052.0,90047.0,0.01110531]
[1767417598471,0.01110457,90053.0,90048.0,0.01110518]
[1767417598672,0.01110469,90052.0,90046.0,0.01110543]
[1767417599021,0.01110457,90053.0,90046.0,0.01110543]
[1767417599022,0.01110457,90053.0,90047.0,0.01110531]
[1767417599243,0.01110469,90052.0,90040.0,0.05553028]
[1767417599367,0.01110469,90052.0,90043.0,0.0111058]
[1767417599368,0.05552409,90051.0,90043.0,0.0111058]
[1767417599575,0.05552409,90051.0,90039.0,0.01110629]
[1767417599576,0.06663039,90049.0,90039.0,0.01110629]
[1767417599758,0.01110506,90049.0,90042.0,0.01110592]
[1767417599954,0.01110531,90047.0,90042.0,0.01110592]
[1767417600156,0.01110518,90048.0,90043.0,0.0111058]
[1767417600355,0.01110506,90049.0,90043.0,0.0111058]
[1767417600557,0.01110494,90050.0,90043.0,0.0111058]
[1767417600768,0.06662947,90051.0,90043.0,0.0111058]
[1767417600769,0.01110481,90051.0,90046.0,0.01110543]
[1767417600977,0.01110469,90052.0,90046.0,0.01110543]
[1767417601180,0.01110457,90053.0,90047.0,0.01110531]
[1767417601381,0.05910489,90052.0,90045.0,0.01110555]
[1767417601580,0.01110457,90053.0,90046.0,0.01110543]
[1767417602027,0.01110469,90052.0,90047.0,0.01110531]
[1767417602270,0.01110481,90051.0,90044.0,0.06663362]
[1767417602470,0.01110469,90052.0,90046.0,0.01110543]
[1767417603062,0.01110457,90053.0,90047.0,0.01110531]
[1767417603228,0.01110457,90053.0,90046.0,0.01110543]
[1767417603391,0.01110469,90052.0,90047.0,0.01110531]
[1767417603596,0.01110469,90052.0,90046.0,0.01110543]
[1767417603996,0.01110481,90051.0,90046.0,0.01110543]
[1767417604444,0.01110469,90052.0,90046.0,0.01110543]
[1767417604644,0.01110494,90050.0,90044.0,0.01110568]
[1767417604852,0.01110494,90050.0,90045.0,0.01110555]
[1767417605348,0.01110469,90052.0,90046.0,0.01110543]
[1767417605732,0.01110469,90052.0,90047.0,0.01110531]
[1767417605897,0.01110469,90052.0,90046.0,0.01110543]
[1767417606099,0.01110481,90051.0,90045.0,0.01110555]
[1767417606303,0.01110494,90050.0,90045.0,0.01110555]
[1767417606501,0.01110469,90052.0,90045.0,0.01110555]
[1767417606706,0.01110469,90052.0,90050.0,0.000999]
[1767417606941,0.01110469,90052.0,90047.0,0.01110531]
[1767417607142,0.01110469,90052.0,90046.0,0.01110543]
[1767417607560,0.01110481,90051.0,90045.0,0.01110555]
[1767417607739,0.01110481,90051.0,90046.0,0.01110543]
[1767417608069,0.01110592,90042.0,90032.0,0.11321686]
[1767417608284,0.01110617,90040.0,90034.0,0.01110691]
[1767417608613,0.01074597,90041.0,90035.0,0.05768113]
[1767417608785,0.01074597,90041.0,90035.0,0.04657434]
[1767417608982,0.01110592,90042.0,90035.0,0.05768113]
[1767417609290,0.01110592,90042.0,90037.0,0.01110654]
[1767417609527,0.01110592,90042.0,90036.0,0.01110666]
[1767417609732,0.01110605,90041.0,90036.0,0.01110666]
[1767417609855,0.0111058,90043.0,90037.0,0.01110654]
[1767417610055,0.01110568,90044.0,90038.0,0.01110642]
[1767417610300,0.01110555,90045.0,90039.0,0.01110629]
[1767417610457,0.01110555,90045.0,90038.0,0.04657434]
[1767417610661,0.01110568,90044.0,90039.0,0.01110629]
[1767417611061,0.01110555,90045.0,90039.0,0.01110629]
[1767417611267,0.01110568,90044.0,90039.0,0.01110629]
[1767417611467,0.01110568,90044.0,90038.0,0.05768076]
[1767417611719,0.0111058,90043.0,90038.0,0.04657434]
[1767417612333,0.0111058,90043.0,90038.0,0.05768076]
[1767417612471,0.01112,90046.0,90038.0,0.11321263]
[1767417612680,0.01110568,90044.0,90038.0,0.05768076]
[1767417612880,0.0111058,90043.0,90038.0,0.04657434]
[1767417613323,0.0111058,90043.0,90038.0,0.05768076]
[1767417613703,0.0111058,90043.0,90038.0,0.04657434]
[1767417614195,0.0111058,90043.0,90038.0,0.05768076]
[1767417614407,0.01110568,90044.0,90038.0,0.05768076]
[1767417614609,0.01110555,90045.0,90039.0,0.01110629]
[1767417615024,0.05552557,90049.0,90040.0,0.01110617]
[1767417615225,0.02222518,90048.0,90041.0,0.01110605]
[1767417615427,0.02222518,90048.0,90042.0,0.01110592]
[1767417615815,0.02222518,90048.0,90041.0,0.01110605]
[1767417616019,0.02222518,90048.0,90042.0,0.01110592]
[1767417616020,0.01110531,90047.0,90042.0,0.01110592]
[1767417616382,0.01110543,90046.0,90040.0,0.01110617]
[1767417616822,0.01110555,90045.0,90040.0,0.01110617]
[1767417617037,0.01110543,90046.0,90040.0,0.05768051]
[1767417617255,0.01110543,90046.0,90041.0,0.01110605]
[1767417617461,0.01110543,90046.0,90040.0,0.05768051]
[1767417618235,0.01110543,90046.0,90040.0,0.04657434]
[1767417618791,0.01110555,90045.0,90040.0,0.04657434]
[1767417618991,0.01110543,90046.0,90040.0,0.05768051]
[1767417619501,0.01110568,90044.0,90040.0,0.04657434]
[1767417619697,0.01110555,90045.0,90040.0,0.05768051]
[1767417619922,0.01110543,90046.0,90040.0,0.05768051]
[1767417620526,0.01110555,90045.0,90040.0,0.05768051]
[1767417621368,0.01110555,90045.0,90040.0,0.04657434]
[1767417621571,0.01110555,90045.0,90040.0,0.05768051]
[1767417621783,0.01110555,90045.0,90040.0,0.01110617]
[1767417622201,0.01110568,90044.0,90039.0,0.01110629]
[1767417622407,0.01110555,90045.0,90039.0,0.01110629]
[1767417623033,0.01110568,90044.0,90038.0,0.01110642]
[1767417623248,0.01110592,90042.0,90037.0,0.05768088]
[1767417624752,0.01110592,90042.0,90037.0,0.04657434]
[1767417625723,0.01110592,90042.0,90037.0,0.05768088]
[1767417626507,0.01110592,90042.0,90034.0,0.05553435]
[1767417626770,0.01110617,90040.0,90034.0,0.01110691]
[1767417626974,0.01110592,90042.0,90036.0,0.01110666]
[1767417627579,0.01110617,90040.0,90034.0,0.01110691]
[1767417627814,0.01110617,90040.0,90035.0,0.01110679]
[1767417628383,0.00035985,90040.0,90035.0,0.01110679]
[1767417629129,0.00035985,90040.0,90036.0,0.01110666]
[1767417629711,0.00035985,90040.0,90037.0,0.01110654]
[1767417633382,0.00035985,90040.0,90036.0,0.06663963]
[1767417633582,0.00035985,90040.0,90037.0,0.01110654]
[1767417639302,0.00035985,90040.0,90037.0,0.06663888]
[1767417639520,0.00035985,90040.0,90037.0,0.01110654]
[1767417640451,0.000999,90037.0,90036.0,0.01110666]
[1767417640655,0.00035985,90040.0,90037.0,0.01110654]
[1767417642080,0.00035985,90040.0,90036.0,0.01110666]
[1767417642295,0.00035985,90040.0,90037.0,0.01110654]
[1767417642651,0.00035985,90040.0,90036.0,0.01110666]
[1767417642859,0.00035985,90040.0,90037.0,0.01110654]
[1767417643055,0.00035985,90040.0,90036.0,0.01110666]
[1767417643516,0.00035985,90040.0,90037.0,0.01110654]
[1767417643719,0.00035985,90040.0,90036.0,0.01110666]
[1767417644692,0.00035985,90040.0,90037.0,0.01110654]
[1767417645706,0.05553554,90033.0,90028.0,0.01112]
[1767417645856,0.05553457,90034.0,90027.0,0.01110777]
[1767417646054,0.06664083,90035.0,90027.0,0.01110777]
[1767417646256,0.01110691,90034.0,90028.0,0.01110765]
[1767417646457,0.01110691,90034.0,90026.0,0.0666468]
[1767417646458,0.01110703,90033.0,90026.0,0.0111079]
[1767417646657,0.01110716,90032.0,90026.0,0.0111079]
[1767417646860,0.000999,90026.0,90023.0,0.01110827]
[1767417647068,0.0111074,90030.0,90023.0,0.01110827]
[1767417647278,0.0111074,90030.0,90025.0,0.01110802]
[1767417647871,0.01110728,90031.0,90026.0,0.0111079]
[1767417648073,0.01110716,90032.0,90027.0,0.06664666]
[1767417648295,0.01110716,90032.0,90027.0,0.01110777]
[1767417649013,0.01110716,90032.0,90026.0,0.0111079]
[1767417649218,0.01110716,90032.0,90024.0,0.01110814]
[1767417649429,0.01110728,90031.0,90026.0,0.0111079]
[1767417649634,0.0111074,90030.0,90024.0,0.01110814]
[1767417650149,0.0111074,90030.0,90025.0,0.01110802]
[1767417650352,0.0111074,90030.0,90024.0,0.01110814]
[1767417650562,0.0111074,90030.0,90025.0,0.01110802]
[1767417650775,0.01110716,90032.0,90026.0,0.0111079]
[1767417651257,0.02222703,90033.0,90026.0,0.0111079]
[1767417651407,0.02222703,90033.0,90027.0,0.05553889]
[1767417651608,0.02222703,90033.0,90022.0,0.01112]
[1767417651609,0.01110728,90031.0,90024.0,0.06664837]
[1767417651808,0.01110728,90031.0,90026.0,0.0111079]
[1767417652249,0.01110716,90032.0,90027.0,0.01110777]
[1767417652629,0.01110728,90031.0,90026.0,0.0111079]
[1767417653451,0.0111074,90030.0,90025.0,0.01110802]
[1767417654222,0.01110728,90031.0,90026.0,0.0111079]
[1767417654594,0.02222703,90033.0,90027.0,0.01110777]